bitfinex/quotes_BTCUSD_20250412
["timestamp","ask_amount","ask_price","bid_price","bid_amount"]
[1744466737469,0.057,84428.0,84425.0,0.236894]
[1744466737932,0.06,84428.0,84427.0,0.236891]
[1744466738069,0.053,84428.0,84427.0,0.236891]
[1744466738274,0.057,84428.0,84427.0,0.236891]
[1744466738697,0.053,84428.0,84427.0,0.236891]
[1744466738908,0.057,84428.0,84427.0,0.236891]
[1744466739092,0.004,84428.0,84427.0,0.76592962]
[1744466739549,0.007,84428.0,84427.0,0.76592962]
[1744466740094,0.004,84428.0,84427.0,0.76592962]
[1744466740292,0.0004222,84429.0,84428.0,0.34]
[1744466740477,0.0004222,84429.0,84428.0,0.46084154]
[1744466741237,6e-07,84431.0,84429.0,0.25142585]
[1744466741540,4e-07,84435.0,84434.0,0.63871185]
[1744466741740,4e-07,84435.0,84434.0,0.75955339]
[1744466742801,4e-07,84435.0,84434.0,0.74501254]
[1744466743004,4e-07,84435.0,84434.0,0.75955339]
[1744466743305,4e-07,84439.0,84438.0,0.59140085]
[1744466743523,4e-07,84439.0,84438.0,0.71224239]
[1744466745248,4e-07,84439.0,84438.0,0.71324239]
[1744466745848,2e-07,84443.0,84442.0,0.59138885]
[1744466746085,2e-07,84443.0,84442.0,0.71223039]
[1744466746301,2e-07,84443.0,84442.0,0.71323039]
[1744466746596,2e-07,84443.0,84442.0,0.76173039]
[1744466746800,8e-07,84446.0,84445.0,1.00057793]
[1744466747040,1.5e-07,84446.0,84445.0,1.22141947]
[1744466747239,1.5e-07,84446.0,84445.0,1.31511947]
[1744466747453,4e-07,84462.0,84461.0,0.59133585]
[1744466747655,4e-07,84462.0,84461.0,0.90601739]
[1744466748064,0.0122576,84494.0,84490.0,0.236711]
[1744466748238,0.14088728,84494.0,84492.0,0.236708]
[1744466748559,0.14088728,84494.0,84488.0,0.011836]
[1744466748560,0.15272228,84494.0,84488.0,0.248555]
[1744466748769,0.15272228,84494.0,84490.0,0.236713]
[1744466748897,0.14088728,84494.0,84490.0,0.236713]
[1744466749094,0.14088728,84494.0,84489.0,0.248552]
[1744466749299,0.14088728,84494.0,84490.0,0.011835]
[1744466749515,0.14088728,84494.0,84483.0,0.236732]
[1744466749516,0.011836,84488.0,84485.0,0.1938]
[1744466749713,0.07,84488.0,84485.0,0.1938]
[1744466749969,0.07,84488.0,84487.0,0.236722]
[1744466749970,0.0699008,84488.0,84487.0,0.236722]
[1744466751122,0.0809008,84488.0,84485.0,0.236728]
[1744466751435,0.011836,84485.0,84482.0,0.40819708]
[1744466751636,0.236734,84483.0,84482.0,0.40819708]
[1744466751845,0.049,84465.0,84459.0,0.236801]
[1744466752102,0.16,84465.0,84463.0,0.236787]
[1744466752501,0.16,84465.0,84457.0,0.236804]
[1744466752502,0.011839,84463.0,84457.0,0.236804]
[1744466752698,0.19,84463.0,84460.0,0.011839]
[1744466752907,0.19,84463.0,84462.0,0.236792]
[1744466754223,0.19,84463.0,84456.0,0.01184]
[1744466754224,0.01184,84457.0,84454.0,0.19376]
[1744466754449,0.18184,84457.0,84454.0,0.19376]
[1744466754668,0.18184,84457.0,84455.0,0.35765354]
[1744466754669,0.17,84457.0,84455.0,0.35765354]
[1744466755784,0.17,84457.0,84455.0,0.236812]
[1744466755974,0.17,84457.0,84455.0,0.237812]
[1744466756217,0.17,84457.0,84455.0,0.35865354]
[1744466756374,0.13300353,84457.0,84456.0,0.12084154]
[1744466756750,0.248605,84471.0,84463.0,0.011839]
[1744466756954,0.011838,84469.0,84464.0,0.236785]
[1744466757172,0.181838,84469.0,84465.0,0.236781]
[1744466757383,0.011838,84468.0,84464.0,0.236785]
[1744466757587,0.011838,84468.0,84462.0,0.236792]
[1744466757588,0.011838,84467.0,84462.0,0.236792]
[1744466757803,0.16,84467.0,84464.0,0.236786]
[1744466758240,0.16,84467.0,84466.0,0.236781]
[1744466759572,0.162,84467.0,84466.0,0.236781]
[1744466759792,0.164,84467.0,84466.0,0.236781]
[1744466760215,0.004,84467.0,84466.0,0.236781]
[1744466760531,0.004,84467.0,84466.0,0.2391485]
[1744466760884,0.004,84467.0,84466.0,0.236781]
[1744466761663,0.192,84467.0,84466.0,0.236781]
[1744466762209,0.011839,84461.0,84454.0,0.19376]
[1744466762398,0.001,84467.0,84466.0,0.236781]
[1744466762612,0.16,84467.0,84466.0,0.236781]
[1744466762753,0.161,84467.0,84466.0,0.236781]
[1744466763129,0.16,84467.0,84466.0,0.236781]
[1744466763340,0.16,84467.0,84463.0,0.23679]
[1744466763549,0.011839,84463.0,84459.0,0.2368]
[1744466763752,0.161839,84463.0,84454.0,0.2056]
[1744466763986,0.161839,84463.0,84460.0,0.248636]
[1744466763987,0.15,84463.0,84460.0,0.248636]
[1744466764189,0.398629,84463.0,84456.0,0.236807]
[1744466764414,0.011839,84461.0,84456.0,0.248647]
[1744466764614,0.18,84461.0,84457.0,0.248644]
[1744466764793,0.01184,84458.0,84454.0,0.430573]
[1744466764996,0.19,84458.0,84454.0,0.442413]
[1744466766225,0.19,84458.0,84454.0,0.001]
[1744466766417,0.01184,84457.0,84454.0,0.001]
[1744466766645,0.18184,84457.0,84454.0,0.001]
[1744466766842,0.236812,84456.0,84454.0,0.001]
[1744466767044,0.236812,84456.0,84437.0,0.24852143]
[1744466767045,0.23686,84438.0,84437.0,0.01166143]
[1744466767308,0.236875,84433.0,84428.0,0.248729]
[1744466767509,0.04,84433.0,84429.0,0.248726]
[1744466768062,0.04,84433.0,84430.0,0.011844]
[1744466768469,0.04,84433.0,84430.0,0.01198335]
[1744466768820,0.04,84433.0,84430.0,0.24886335]
[1744466769017,0.04,84433.0,84430.0,0.00013935]
[1744466769221,0.236879,84431.0,84430.0,0.00013935]
[1744466769418,0.396879,84431.0,84430.0,0.00113935]
[1744466770311,0.396879,84431.0,84430.0,0.00013935]
[1744466770729,0.16,84431.0,84430.0,0.00013935]
[1744466770928,0.16,84431.0,84430.0,0.23702135]
[1744466771458,0.16,84431.0,84430.0,0.00013935]
[1744466771587,0.16,84431.0,84430.0,0.00113935]
[1744466771993,0.162,84431.0,84430.0,0.00113935]
[1744466772343,0.162,84431.0,84430.0,0.00013935]
[1744466772733,0.400879,84431.0,84430.0,0.00013935]
[1744466773075,0.164,84431.0,84430.0,0.00013935]
[1744466776453,0.162,84431.0,84430.0,0.00013935]
[1744466777014,0.16,84431.0,84430.0,0.00013935]
[1744466777258,0.161,84431.0,84430.0,0.00013935]
[1744466778012,0.161,84431.0,84430.0,0.52917797]
[1744466778197,0.161,84431.0,84430.0,0.40833643]
[1744466778602,0.396879,84431.0,84430.0,0.40833643]
[1744466778937,0.16,84431.0,84430.0,0.40833643]
[1744466779137,0.16,84431.0,84430.0,0.00113935]
[1744466779700,0.16,84431.0,84430.0,0.00013935]
[1744466780241,0.16,84431.0,84430.0,0.00213935]
[1744466780416,0.16,84431.0,84430.0,0.00113935]
[1744466781015,0.16,84431.0,84430.0,0.00013935]
[1744466781219,0.161,84431.0,84430.0,0.00013935]
[1744466781619,0.163,84431.0,84430.0,0.00013935]
[1744466781821,0.161,84431.0,84430.0,0.00013935]
[1744466782379,0.162,84431.0,84430.0,0.00013935]
[1744466783008,0.33124154,84431.0,84430.0,0.00013935]
[1744466783130,0.37724154,84431.0,84430.0,0.00013935]
[1744466792049,0.2564,84431.0,84430.0,0.00013935]
[1744466792179,0.162,84431.0,84430.0,0.00013935]
[1744466795485,0.162,84431.0,84430.0,0.02382735]
[1744466796473,0.18416619,84431.0,84430.0,0.02382735]
[1744466796789,0.18416619,84431.0,84430.0,0.26070935]
[1744466796995,0.18416619,84431.0,84430.0,0.02382735]
[1744466797761,0.19525258,84431.0,84430.0,0.02382735]
[1744466800313,0.18416619,84431.0,84430.0,0.02382735]
[1744466801475,0.162,84431.0,84430.0,0.02382735]
[1744466802071,0.161,84431.0,84430.0,0.02382735]
[1744466802285,0.16,84431.0,84430.0,0.02382735]
[1744466802491,0.1821725,84431.0,84430.0,0.02382735]
[1744466802845,0.1831725,84431.0,84430.0,0.02382735]
[1744466803383,0.19425838,84431.0,84430.0,0.02382735]
[1744466803593,0.17208588,84431.0,84430.0,0.02382735]
[1744466804015,0.161,84431.0,84430.0,0.02382735]
[1744466804859,0.161,84431.0,84430.0,0.19373759]
[1744466805063,0.061239,84465.0,84455.0,0.01184]
[1744466805282,0.17,84465.0,84464.0,0.236787]
[1744466805620,0.17,84465.0,84463.0,0.236789]
[1744466805816,0.18150376,84465.0,84463.0,0.236789]
[1744466806090,0.18150376,84465.0,84461.0,0.236795]
[1744466806276,0.176,84465.0,84463.0,0.236787]
[1744466806682,0.17,84465.0,84463.0,0.236787]
[1744466806987,0.174,84465.0,84463.0,0.236787]
[1744466807437,0.184,84465.0,84464.0,0.001]
[1744466807850,0.174,84465.0,84463.0,0.236787]
[1744466808054,0.20211325,84465.0,84463.0,0.236787]
[1744466808259,0.01105662,84464.0,84463.0,0.236787]
[1744466808405,0.20316987,84464.0,84461.0,0.236795]
[1744466808602,0.20316987,84464.0,84462.0,0.23679]
[1744466808829,0.18105662,84464.0,84462.0,0.23679]
[1744466809405,0.17,84464.0,84462.0,0.23679]
[1744466810728,0.176,84464.0,84462.0,0.23679]
[1744466811503,0.179,84464.0,84462.0,0.23679]
[1744466811703,0.182,84464.0,84462.0,0.23679]
[1744466812063,0.179,84464.0,84462.0,0.23679]
[1744466812385,0.181,84464.0,84462.0,0.23679]
[1744466817669,0.181,84464.0,84462.0,0.23729]
[1744466825510,0.181,84464.0,84462.0,0.0005]
[1744466825693,0.181,84464.0,84463.0,0.23679]
[1744466827024,0.17,84464.0,84463.0,0.23679]
[1744466827223,0.173,84464.0,84463.0,0.23679]
[1744466827393,0.175,84464.0,84463.0,0.23679]
[1744466828640,0.175,84464.0,84462.0,0.237291]
[1744466829957,0.17,84464.0,84462.0,0.237291]
[1744466830373,0.175,84464.0,84462.0,0.237291]
[1744466834292,0.02214991,84463.0,84462.0,0.237291]
[1744466834630,0.17214991,84463.0,84462.0,0.237291]
[1744466835531,0.17514991,84463.0,84462.0,0.237291]
[1744466836518,0.17714991,84463.0,84462.0,0.237291]
[1744466837747,9.1e-07,84463.0,84462.0,1.15402962]
[1744466837889,0.0004226,84494.0,84490.0,0.236714]
[1744466838098,0.0804222,84491.0,84490.0,0.40345554]
[1744466838295,0.08056157,84491.0,84490.0,0.40345554]
[1744466838505,0.00056157,84491.0,84490.0,0.40345554]
[1744466839912,0.00056157,84491.0,84490.0,0.4152399]
[1744466840857,0.00656157,84491.0,84490.0,0.4152399]
[1744466841211,0.00056157,84491.0,84490.0,0.4152399]
[1744466841714,5.7e-07,84491.0,84490.0,0.83997783]
[1744466842492,5.7e-07,84491.0,84490.0,0.82543698]
[1744466843162,5.7e-07,84491.0,84490.0,0.82843698]
[1744466843916,5.7e-07,84491.0,84490.0,0.84297783]
[1744466844318,5.7e-07,84491.0,84490.0,0.82843698]
[1744466845483,5.7e-07,84491.0,84490.0,0.78253698]
[1744466845682,0.17000057,84491.0,84490.0,0.78253698]
[1744466845915,0.17000057,84491.0,84490.0,0.64991108]
[1744466848332,0.17000057,84491.0,84490.0,0.77075262]
[1744466848739,5.7e-07,84491.0,84490.0,0.77075262]
[1744466849135,0.17000057,84491.0,84490.0,0.64991108]
[1744466849574,5.7e-07,84491.0,84490.0,0.64991108]
[1744466849903,5.7e-07,84491.0,84490.0,0.77075262]
[1744466850101,5.7e-07,84491.0,84490.0,0.83199347]
[1744466850850,0.0004226,84497.0,84496.0,0.236697]
[1744466851078,0.00088691,84497.0,84496.0,0.35753854]
[1744466852473,0.00088691,84497.0,84496.0,0.35953854]
[1744466853639,0.18088691,84497.0,84496.0,0.238697]
[1744466856461,0.18088691,84497.0,84496.0,0.35953854]
[1744466858927,0.00088691,84497.0,84496.0,0.35953854]
[1744466865267,0.00088691,84497.0,84496.0,0.36693245]
[1744466865440,0.00088691,84497.0,84496.0,1.16082953]
[1744466865648,1.1e-07,84513.0,84507.0,0.011833]
[1744466865860,1.1e-07,84513.0,84512.0,0.622352]
[1744466866201,1.1e-07,84513.0,84512.0,1.11308453]
[1744466867996,1.1e-07,84513.0,84512.0,1.11608453]
[1744466868330,1.1e-07,84513.0,84512.0,1.12762688]
[1744466868534,1.1e-07,84513.0,84512.0,1.13362688]
[1744466868884,1.1e-07,84513.0,84512.0,1.12762688]
[1744466869103,1.1e-07,84513.0,84512.0,1.14216773]
[1744466869286,0.0004224,84520.0,84519.0,0.236633]
[1744466869541,0.00056161,84520.0,84519.0,0.76567162]
[1744466870133,0.00056161,84520.0,84519.0,0.77306553]
[1744466870632,0.00056161,84520.0,84519.0,0.77506553]
[1744466871499,0.00056161,84520.0,84519.0,0.77906553]
[1744466873281,0.00056161,84520.0,84519.0,0.77167162]
[1744466874674,0.00056161,84520.0,84519.0,0.77906346]
[1744466875524,0.00056161,84520.0,84519.0,0.97110346]
[1744466879026,0.01056161,84520.0,84519.0,0.97110346]
[1744466879676,0.01056161,84520.0,84519.0,0.77906346]
[1744466879884,0.01056161,84520.0,84519.0,0.65822192]
[1744466880256,0.01056161,84520.0,84519.0,0.41419708]
[1744466880583,0.05876161,84520.0,84519.0,0.006]
[1744466881143,0.05876161,84520.0,84519.0,0.004]
[1744466881343,0.05876161,84520.0,84505.0,0.011833]
[1744466881543,0.05876161,84520.0,84519.0,0.236633]
[1744466881781,0.05876161,84520.0,84506.0,0.236668]
[1744466881984,0.05876161,84520.0,84505.0,0.236672]
[1744466882428,0.05876161,84520.0,84519.0,0.002]
[1744466883083,0.05876161,84520.0,84516.0,0.00739331]
[1744466883494,0.01056161,84520.0,84519.0,0.236633]
[1744466884050,0.01056161,84520.0,84519.0,0.36486785]
[1744466884256,0.01056161,84520.0,84519.0,0.77306493]
[1744466884714,0.01046246,84520.0,84519.0,0.77306493]
[1744466885057,0.01046246,84520.0,84519.0,0.77676111]
[1744466885668,0.00046246,84520.0,84519.0,0.77676111]
[1744466885870,0.00046246,84520.0,84519.0,0.70856403]
[1744466886725,0.00046246,84520.0,84519.0,0.70906403]
[1744466887101,0.00046246,84520.0,84519.0,0.71206403]
[1744466887298,4.6e-07,84520.0,84519.0,0.77450488]
[1744466887524,4.6e-07,84520.0,84519.0,1.18869976]
[1744466887685,0.002,84529.0,84519.0,1.18869976]
[1744466887686,0.002,84529.0,84524.0,0.576619]
[1744466887888,0.002,84529.0,84524.0,1.11674491]
[1744466888114,0.002,84529.0,84524.0,1.13128576]
[1744466888918,0.002,84529.0,84524.0,1.13928576]
[1744466889334,1e-06,84531.0,84530.0,0.01454085]
[1744466889534,2e-07,84542.0,84540.0,0.01454085]
[1744466889737,2e-07,84542.0,84539.0,0.011828]
[1744466889738,2e-07,84542.0,84541.0,1.31451532]
[1744466889933,2e-07,84542.0,84541.0,1.31584665]
[1744466890161,2e-07,84542.0,84541.0,1.32323776]
[1744466890579,5e-07,84554.0,84553.0,0.59107885]
[1744466890783,0.00013971,84554.0,84553.0,0.71192039]
[1744466890987,0.00013971,84554.0,84553.0,0.7193115]
[1744466891141,7.1e-07,84554.0,84553.0,0.72300768]
[1744466891343,7.1e-07,84559.0,84558.0,0.59106485]
[1744466891547,0.002,84589.0,84565.0,0.576504]
[1744466891548,1.1e-07,84566.0,84565.0,0.576504]
[1744466891743,7.1e-07,84576.0,84575.0,0.576476]
[1744466891946,7.1e-07,84576.0,84575.0,0.59101685]
[1744466892211,7.1e-07,84576.0,84575.0,0.60210414]
[1744466892966,7.1e-07,84576.0,84575.0,0.60410414]
[1744466893822,7.1e-07,84576.0,84575.0,0.72494568]
[1744466894016,7.1e-07,84576.0,84575.0,0.76994568]
[1744466894366,0.0004224,84588.0,84587.0,0.576442]
[1744466894564,0.0004224,84588.0,84587.0,0.75692439]
[1744466894711,0.002,84589.0,84588.0,0.35454085]
[1744466895043,0.002,84589.0,84588.0,0.4827735]
[1744466895044,0.00246414,84589.0,84588.0,0.4827735]
[1744466895456,0.00246414,84589.0,84588.0,0.47192883]
[1744466895626,0.15246414,84589.0,84588.0,0.01108729]
[1744466896413,0.15246414,84589.0,84588.0,0.01039111]
[1744466896811,0.15246414,84589.0,84587.0,0.00369618]
[1744466897232,0.15246414,84589.0,84588.0,0.001]
[1744466897796,0.15246414,84589.0,84588.0,0.002]
[1744466898046,0.15246414,84589.0,84588.0,0.001]
[1744466898823,0.15246414,84589.0,84586.0,0.40819708]
[1744466899032,0.15246414,84589.0,84580.0,0.23646]
[1744466899259,0.15246414,84589.0,84587.0,0.001]
[1744466899755,0.011822,84588.0,84578.0,0.40819708]
[1744466899935,0.18,84588.0,84578.0,0.40819708]
[1744466900137,0.18,84588.0,84586.0,0.001]
[1744466900609,0.18,84588.0,84575.0,0.011823]
[1744466900807,0.18,84588.0,84584.0,0.236448]
[1744466901017,0.18,84588.0,84578.0,0.002]
[1744466901320,0.18,84588.0,84578.0,0.238465]
[1744466901909,0.191822,84588.0,84578.0,0.002]
[1744466902084,0.18,84588.0,84578.0,0.002]
[1744466902302,0.011822,84585.0,84577.0,0.00369366]
[1744466902587,0.17,84585.0,84577.0,0.24016166]
[1744466903122,0.17,84585.0,84575.0,0.23883951]
[1744466903277,0.17,84585.0,84569.0,0.00369366]
[1744466903479,0.17,84585.0,84577.0,0.002]
[1744466903906,0.12250124,84585.0,84573.0,0.23648]
[1744466904116,0.12250124,84585.0,84578.0,0.002]
[1744466904695,0.12250124,84585.0,84584.0,0.236451]
[1744466905012,0.12250124,84585.0,84577.0,0.23847]
[1744466905192,0.12250124,84585.0,84578.0,0.12184154]
[1744466905398,0.12250124,84585.0,84579.0,0.236465]
[1744466905602,0.12250124,84585.0,84581.0,0.236458]
[1744466905803,0.12250124,84585.0,84579.0,0.35730654]
[1744466906347,0.00909388,84598.0,84579.0,0.35730654]
[1744466906591,0.04,84585.0,84579.0,0.76650362]
[1744466906744,0.04,84585.0,84581.0,0.236458]
[1744466906947,0.04,84585.0,84579.0,0.76650362]
[1744466907241,0.04,84585.0,84582.0,0.236454]
[1744466907863,0.04,84585.0,84582.0,0.23881833]
[1744466908198,0.04,84585.0,84582.0,0.236454]
[1744466908395,0.04,84585.0,84584.0,0.236451]
[1744466908918,0.04,84585.0,84584.0,0.24383764]
[1744466909893,0.04,84585.0,84584.0,0.236451]
[1744466910177,0.04,84585.0,84584.0,0.24014434]
[1744466911518,0.04,84585.0,84584.0,0.36098588]
[1744466911688,0.00013912,84598.0,84597.0,0.236415]
[1744466911888,0.16013912,84598.0,84597.0,0.236415]
[1744466912242,0.16013912,84598.0,84597.0,0.24749498]
[1744466913381,0.16013912,84598.0,84597.0,0.01107998]
[1744466913581,0.16113912,84598.0,84597.0,0.01107998]
[1744466914544,0.16013912,84598.0,84597.0,0.13192152]
[1744466914747,0.00013912,84598.0,84597.0,0.13192152]
[1744466916118,0.00013912,84598.0,84597.0,0.47428524]
[1744466916448,0.00013912,84598.0,84597.0,0.47192152]
[1744466916648,0.00013912,84598.0,84597.0,0.47392152]
[1744466916848,0.0001,84610.0,84602.0,0.248218]
[1744466917060,0.0701,84610.0,84608.0,0.236381]
[1744466917247,0.03316331,84610.0,84608.0,0.236381]
[1744466917430,0.03316331,84610.0,84608.0,0.35722254]
[1744466917632,0.03316331,84610.0,84609.0,0.12084154]
[1744466917995,0.03316331,84610.0,84609.0,0.00738664]
[1744466918707,0.03316331,84610.0,84609.0,0.01107998]
[1744466918914,0.03316331,84610.0,84609.0,0.01344371]
[1744466919097,0.03316331,84610.0,84609.0,0.00369334]
[1744466919441,0.004152,84622.0,84616.0,0.011818]
[1744466919641,0.26237814,84632.0,84631.0,0.23632]
[1744466919843,0.26251721,84632.0,84631.0,0.35716154]
[1744466920215,0.26251721,84632.0,84631.0,0.13192152]
[1744466920393,0.27251721,84632.0,84631.0,0.13192152]
[1744466920631,0.26251721,84632.0,84631.0,0.13192152]
[1744466921025,0.26251721,84632.0,84631.0,0.01107998]
[1744466921026,0.44251721,84632.0,84631.0,0.01107998]
[1744466921232,0.44251721,84632.0,84631.0,0.87473196]
[1744466921373,0.26251721,84632.0,84631.0,0.93657281]
[1744466921568,0.26251721,84632.0,84631.0,0.93457281]
[1744466921767,0.000422,84644.0,84641.0,0.011814]
[1744466922021,0.000422,84644.0,84643.0,0.576286]
[1744466922187,0.000422,84644.0,84643.0,0.71166839]
[1744466922392,0.000422,84644.0,84643.0,0.70451418]
[1744466922598,0.000422,84644.0,84643.0,0.71905503]
[1744466922793,0.000422,84644.0,84643.0,0.46822818]
[1744466923173,0.000422,84644.0,84643.0,0.01107998]
[1744466923376,0.011813,84652.0,84643.0,0.01207998]
[1744466923585,0.15,84652.0,84643.0,0.01207998]
[1744466924034,0.011813,84646.0,84643.0,0.001]
[1744466924235,0.191813,84646.0,84643.0,0.001]
[1744466924440,0.23628,84645.0,84643.0,0.001]
[1744466924639,0.011815,84636.0,84625.0,0.2905571]
[1744466924868,0.17,84636.0,84629.0,0.236324]
[1744466925256,0.17,84636.0,84631.0,0.236317]
[1744466925463,0.17,84636.0,84629.0,0.35716554]
[1744466926691,0.17,84636.0,84629.0,0.35816554]
[1744466927096,0.17,84636.0,84629.0,0.12184154]
[1744466927308,0.17,84636.0,84629.0,0.001]
[1744466927439,0.17,84636.0,84633.0,0.236311]
[1744466928056,0.17,84636.0,84629.0,0.001]
[1744466928300,0.17,84636.0,84629.0,0.35716354]
[1744466928698,0.17,84636.0,84629.0,0.237322]
[1744466929173,0.17,84636.0,84629.0,0.236322]
[1744466929530,0.17,84636.0,84632.0,0.236317]
[1744466930045,0.17,84636.0,84635.0,0.236308]
[1744466930220,0.17,84636.0,84635.0,0.35714954]
[1744466930429,0.17,84636.0,84635.0,0.69714954]
[1744466930600,0.02059235,84662.0,84651.0,0.248077]
[1744466930804,0.20059235,84662.0,84659.0,0.236239]
[1744466930996,0.20059235,84662.0,84657.0,0.236245]
[1744466931201,0.20059235,84662.0,84658.0,0.35708554]
[1744466931400,0.20059235,84662.0,84658.0,0.12084154]
[1744466931738,0.20059235,84662.0,84659.0,0.236241]
[1744466931966,0.20073137,84662.0,84659.0,0.36889454]
[1744466932258,0.20073137,84662.0,84661.0,0.236236]
[1744466932467,0.20073137,84662.0,84661.0,0.35707754]
[1744466932665,0.20073137,84662.0,84661.0,0.36445887]
[1744466934359,0.20073137,84662.0,84661.0,0.12822287]
[1744466935367,0.20073137,84662.0,84661.0,0.12084154]
[1744466937863,0.20073137,84662.0,84661.0,0.12184154]
[1744466938054,0.14273119,84662.0,84661.0,0.12184154]
[1744466938757,0.14273119,84662.0,84661.0,0.35807754]
[1744466939441,0.00013902,84662.0,84661.0,1.10627462]
[1744466939650,0.0005,84674.0,84673.0,0.59074285]
[1744466939981,0.002422,84679.0,84673.0,0.625302]
[1744466940166,0.07603162,84692.0,84675.0,0.01454085]
[1744466940365,0.10617053,84692.0,84684.0,0.12084154]
[1744466940694,0.10617053,84692.0,84676.0,0.00737986]
[1744466940695,0.07617053,84692.0,84691.0,0.46084154]
[1744466941258,0.07617053,84692.0,84691.0,0.4682214]
[1744466941464,0.07617053,84692.0,84691.0,0.4796572]
[1744466941660,0.07617053,84692.0,84691.0,0.47190983]
[1744466941883,0.07617053,84692.0,84691.0,0.47390983]
[1744466942059,0.07617053,84692.0,84691.0,0.13590983]
[1744466942264,0.07617053,84692.0,84691.0,0.01325764]
[1744466942265,0.08617053,84692.0,84691.0,0.01325764]
[1744466942691,0.08617053,84692.0,84691.0,0.004]
[1744466942848,0.08617053,84692.0,84691.0,0.12484154]
[1744466943045,0.08617053,84692.0,84691.0,0.004]
[1744466943502,0.04927148,84692.0,84691.0,0.12484154]
[1744466943984,0.04927148,84692.0,84691.0,0.12084154]
[1744466944096,0.011807,84690.0,84674.0,0.2362]
[1744466944295,0.01,84690.0,84677.0,0.236191]
[1744466944558,0.01,84690.0,84673.0,0.05137742]
[1744466944559,0.011808,84688.0,84678.0,0.12084154]
[1744466944794,0.031808,84688.0,84678.0,0.12084154]
[1744466945017,0.019,84688.0,84678.0,0.12084154]
[1744466945190,0.011808,84686.0,84678.0,0.12084154]
[1744466945393,0.15,84686.0,84677.0,0.002]
[1744466945591,0.011809,84680.0,84677.0,0.002]
[1744466945731,0.18,84680.0,84677.0,0.002]
[1744466945935,0.191809,84680.0,84678.0,0.004]
[1744466946135,0.18,84680.0,84678.0,0.004]
[1744466946341,0.18,84680.0,84679.0,0.74352754]
[1744466946600,0.0004217,84708.0,84691.0,0.236152]
[1744466946899,0.0004217,84708.0,84689.0,0.011807]
[1744466946900,0.011806,84698.0,84681.0,0.236179]
[1744466947061,0.011806,84697.0,84682.0,0.35701854]
[1744466947268,0.04927148,84692.0,84683.0,0.00236144]
[1744466947627,0.04927148,84692.0,84670.0,0.34842436]
[1744466947628,0.011808,84684.0,84677.0,0.003]
[1744466947952,0.031808,84684.0,84677.0,0.003]
[1744466948158,0.031808,84684.0,84683.0,0.0005]
[1744466948413,0.031808,84684.0,84683.0,0.0025]
[1744466948600,0.077508,84684.0,84683.0,0.0025]
[1744466948807,0.19834954,84684.0,84683.0,0.0025]
[1744466949012,0.011811,84666.0,84654.0,0.236255]
[1744466949187,0.01,84666.0,84656.0,0.236247]
[1744466949595,0.01,84666.0,84654.0,0.236255]
[1744466949596,0.01,84666.0,84663.0,0.00236226]
[1744466950390,0.01,84666.0,84663.0,0.00282556]
[1744466950572,0.01,84666.0,84664.0,0.35706854]
[1744466950775,0.01,84666.0,84663.0,0.00282556]
[1744466950776,0.01,84666.0,84663.0,0.0004633]
[1744466951040,0.01,84666.0,84663.0,0.2366913]
[1744466951242,0.01,84666.0,84663.0,0.0024633]
[1744466951448,0.01,84666.0,84663.0,0.0034633]
[1744466952250,0.01,84666.0,84663.0,0.2396903]
[1744466952612,0.01,84666.0,84663.0,0.0034633]
[1744466952810,0.01,84666.0,84664.0,0.236227]
[1744466953251,0.01,84666.0,84663.0,0.0034633]
[1744466953447,0.258035,84666.0,84663.0,0.0034633]
[1744466953634,0.258035,84666.0,84663.0,0.0024633]
[1744466954001,0.01,84666.0,84664.0,0.001]
[1744466954414,0.021811,84666.0,84663.0,0.0004633]
[1744466954566,0.01,84666.0,84664.0,0.001]
[1744466954966,0.01,84666.0,84663.0,0.0014633]
[1744466955180,0.01181,84668.0,84663.0,0.0014633]
[1744466955374,0.01181,84667.0,84663.0,0.0004633]
[1744466955553,0.19181,84667.0,84663.0,0.0004633]
[1744466955974,0.011811,84666.0,84663.0,0.0004633]
[1744466956187,0.428033,84666.0,84663.0,0.0009633]
[1744466957331,0.18,84666.0,84663.0,0.0009633]
[1744466957474,0.191811,84666.0,84663.0,0.0009633]
[1744466958690,0.181,84666.0,84663.0,0.0009633]
[1744466958841,0.181,84666.0,84664.0,0.236227]
[1744466959046,0.181,84666.0,84663.0,0.0009633]
[1744466959647,0.181,84666.0,84663.0,0.2371923]
[1744466959849,0.181,84666.0,84663.0,0.0009633]
[1744466960175,0.18,84666.0,84663.0,0.0009633]
[1744466960667,0.181,84666.0,84663.0,0.0009633]
[1744466960903,0.236225,84665.0,84663.0,0.0019633]
[1744466961097,0.12,84665.0,84663.0,0.0019633]
[1744466961417,0.12,84665.0,84663.0,0.0009633]
[1744466962746,0.12,84665.0,84663.0,0.0019633]
[1744466963350,0.12,84665.0,84663.0,0.0009633]
[1744466964336,0.08309066,84665.0,84663.0,0.0009633]
[1744466964758,0.011811,84666.0,84663.0,0.0009633]
[1744466965160,0.01,84666.0,84663.0,0.0009633]
[1744466965897,0.021811,84666.0,84663.0,0.0009633]
[1744466966097,0.236225,84665.0,84663.0,0.0009633]
[1744466966298,0.386225,84665.0,84663.0,0.0009633]
[1744466966499,0.15,84665.0,84663.0,0.0009633]
[1744466966897,0.248008,84675.0,84663.0,0.0009633]
[1744466967099,0.011811,84666.0,84663.0,0.0009633]
[1744466967314,0.161811,84666.0,84663.0,0.0009633]
[1744466967460,0.236225,84665.0,84663.0,0.0009633]
[1744466967833,0.406225,84665.0,84663.0,0.0009633]
[1744466968262,0.17,84665.0,84663.0,0.0009633]
[1744466969104,0.236227,84664.0,84663.0,0.0009633]
[1744466969306,0.396227,84664.0,84663.0,0.0009633]
[1744466969506,0.16,84664.0,84663.0,0.0009633]
[1744466973879,0.16,84664.0,84663.0,0.40916038]
[1744466974052,0.000422,84695.0,84680.0,0.011809]
[1744466974260,0.07093957,84692.0,84677.0,0.40819708]
[1744466974438,0.05913257,84692.0,84678.0,0.13265054]
[1744466975052,0.05913257,84692.0,84679.0,0.00236156]